[Event "Czech Open-GM 2022"]
[Site "Pardubice"]
[Date "2022.07.25"]
[Round "4.1"]
[White "Moksh Amit Doshi"]
[Black "Harsha Bharathakoti"]
[Result "1/2-1/2"]
[ECO "E04"]
[WhiteElo "2409"]
[BlackElo "2547"]
[Annotator "TA"]
[PlyCount "72"]
[EventDate "2022.07.22"]
[EventType "swiss"]
[EventCountry "CZE"]
[SourceTitle "playchess.com"]
[Source "ChessBase"]
[SourceQuality "1"]
[TimeControl "40/5400+30:1800+30"]

{[%evp 13,72,36,58,0,0,0,0,0,14,0,0,-9,15,-27,-17,-91,-20,0,0,-86,-91,-76,-102,-106,-82,-82,0,0,5,0,0,0,0,0,1,3,12,16,18,18,19,-14,0,0,0,-5,0,0,0,0,-2,-5,-6,-7,-13,-14,0,0,0,0,4]} 1. d4 {[%emt 0:02:23]} Nf6 {[%emt 0:00:35]} 2. c4 {[%emt 0:00:24]} e6 {[%emt 0:00:12]} 3. Nf3 {[%emt 0:00:07]} d5 {[%emt 0:00:05]} 4. g3 {[%emt 0:00:07]} dxc4 {[%emt 0:01:20]} 5. Bg2 {[%emt 0:00:16]} a6 {[%emt 0:00:04]} 6. O-O {[%emt 0:00:37]} Nc6 {[%emt 0:00:05]} 7. e3 {[%emt 0:00:10]} Rb8 {[%emt 0:00:13]} 8. Qe2 {[%emt 0:00:41] E04: Open Catalan: 5 Nf3.} ({White should play} 8. Nfd2 $14) 8... b5 $11 {[%emt 0:00:06]} 9. b3 {[%emt 0:00:06]} cxb3 {[%emt 0:00:04]} 10. axb3 {[%emt 0:00:07]} Bd6 {[%emt 0:00:04]} 11. Bb2 {[%emt 0:08:38][%mdl 1024] White has compensation.} Bb7 {[%emt 0:00:20]} 12. Rc1 {[%emt 0:12:23]} O-O {[%emt 0:00:07]} 13. Nbd2 {[%emt 0:03:25]} (13. Ne5 $5 {[%cal Re5c6]} Nb4 14. Bxb7 Rxb7 15. Nd2 $11) 13... Nb4 {[%emt 0:08:29] [#]} 14. Bc3 $146 {[%emt 0:08:28]} (14. Ne1 $11) ({Predecessor:} 14. Ba3 a5 15. Bb2 c6 16. e4 Be7 17. e5 Nd7 18. Ne4 c5 19. Nxc5 Nxc5 20. dxc5 Qd3 21. Nd4 Qxe2 22. Nxe2 Bxg2 23. Kxg2 {½-½ (67) Fedoseev,V (2678)-Le,Q (2709) Chess.com INT 2020}) 14... Nfd5 {[%emt 0:05:13]} ({Black should try} 14... c5 $17) 15. Bb2 {[%emt 0:00:24]} Nf6 {[%emt 0:04:02]} 16. Bc3 {[%emt 0:04:57]} c5 {[%emt 0:07:24]} 17. dxc5 {[%emt 0:29:16]} Bxc5 {[%emt 0:00:36]} 18. Ne5 {[%emt 0:00:34]} Bxg2 {[%emt 0:05:54]} 19. Kxg2 {[%emt 0:00:34]} Qd6 {[%emt 0:18:17]} (19... Rc8 $17) 20. Ng4 $1 $36 {[%emt 0:06:12][%mdl 2048] White is pushing. The position is equal.} Ne8 {[%emt 0:29:52][%cal Bf6e8,Be8d6,Bd6e4,Be4d2][%mdl 32]} 21. Be5 {[%emt 0:05:27] Active counter play!} Qc6+ {[%emt 0:00:03]} 22. Qf3 {[%emt 0:05:08]} Qxf3+ {[%emt 0:00:34]} 23. Nxf3 {[%emt 0:00:44]} Rc8 {[%emt 0:11:26] [#] aiming for ...h5.} 24. Bc3 {[%emt 0:01:02] Bxb4 is the strong threat.} Nd6 {[%emt 0:00:18]} 25. Nge5 {[%emt 0:00:50] Threatens to win with Bxb4.} Nd5 {[%emt 0:01:41][%cal Oc5e3]} 26. Rxa6 {[%emt 0:02:19]} Ne4 {[%emt 0:01:55]} 27. Bd4 {[%emt 0:00:06]} Bd6 {[%emt 0:03:26]} 28. Rxc8 {[%emt 0:02:42]} Rxc8 {[%emt 0:00:01]} 29. Nd3 {[%emt 0:01:00]} Bf8 {[%emt 0:01:28]} 30. h4 {[%emt 0:02:52]} h5 {[%emt 0:00:39]} 31. Ng5 {[%emt 0:00:47]} Nd2 {[%emt 0:00:13]} 32. Ra7 {[%emt 0:00:35]} Rc7 {[%emt 0:01:13]} 33. Ra8 {[%emt 0:01:01] [#] Black must now prevent Bc5.} Nxb3 {[%emt 0:00:01]} 34. Bb2 {[%emt 0:00:28]} Nb6 {[%emt 0:00:56]} 35. Rb8 {[%emt 0:00:15]} Nd7 {[%emt 0:00:06]} 36. Rxb5 {[%emt 0:00:12]} Nbc5 {Weighted Error Value: White=0.10 (very precise) /Black=0.12 (very precise)} 1/2-1/2

[Event "Czech Open-GM 2022"]
[Site "Pardubice"]
[Date "2022.07.25"]
[Round "4.2"]
[White "Keller, Peter"]
[Black "Stachowiak, Kamil"]
[Result "0-1"]
[ECO "B48"]
[WhiteElo "2377"]
[BlackElo "2476"]
[Annotator "TA"]
[PlyCount "70"]
[EventDate "2022.07.22"]
[EventType "swiss"]
[EventCountry "CZE"]
[SourceTitle "playchess.com"]
[Source "ChessBase"]
[SourceQuality "1"]
[TimeControl "40/5400+30:1800+30"]

{[%evp 11,70,33,50,0,0,10,25,0,15,0,13,21,26,20,28,9,81,58,58,73,47,25,70,0,102,27,24,14,0,0,0,-45,0,-77,0,0,0,0,0,0,0,0,0,-184,-165,-172,0,0,0,-8,-8,-795,-778,-753,-45,-51,-45,-745,-710,-12785,-5193]} 1. e4 {[%emt 0:00:03]} c5 {[%emt 0:00:07]} 2. Nf3 {[%emt 0:00:15]} e6 {[%emt 0:00:10]} 3. d4 {[%emt 0:00:18]} cxd4 {[%emt 0:00:06]} 4. Nxd4 {[%emt 0:00:06]} Nc6 {[%emt 0:00:16]} 5. Nc3 {[%emt 0:00:51]} Qc7 {[%emt 0:00:08]} 6. Be3 {[%emt 0:00:10]} a6 {[%emt 0:00:16]} 7. g4 {[%emt 0:01:19] B48: Sicilian: Taimanov: 5 Nc3 Qc7 6 Be3 a6 without Be2.} b5 {[%emt 0:04:21]} 8. Nxc6 {[%emt 0:00:23]} dxc6 {[%emt 0:00:47]} 9. Qd2 {[%emt 0:05:26] White has an edge.} e5 {[%emt 0:07:25]} 10. g5 {[%emt 0:12:56]} Be6 {[%emt 0:23:33]} 11. f4 {[%emt 0:26:50]} exf4 {[%emt 0:08:50]} 12. Bxf4 {[%emt 0:00:11]} Qb6 {[%emt 0:02:04]} 13. O-O-O {[%emt 0:03:22][%cal Oc3d5] And now Nd5! would win.} Bc5 {[%emt 0:01:15]} (13... Rd8 $11 14. Qxd8+ Qxd8 15. Rxd8+ Kxd8) 14. h4 $16 {[%emt 0:30:28]} Ne7 {[%emt 0:12:41][%cal Bg8e7,Be7g6,Bg6f4,Bf4d3][%mdl 32]} 15. h5 {[%emt 0:00:11] [#] Against Ng6} Rd8 $146 {[%emt 0:02:21]} ({Predecessor:} 15... O-O 16. Bd3 Qa5 17. Rdf1 b4 18. Nb1 Qxa2 19. Be5 Qa5 20. h6 g6 21. Bg7 Rfd8 {½-½ (68) Fawzy,A (2490)-Kaustuv,K (2281) Ahmedabad 2022}) 16. Bd3 {[%emt 0:00:49]} Rd7 {[%emt 0:00:18]} 17. Kb1 {[%emt 0:01:28]} (17. Ne2 $14) 17... Kd8 {[%emt 0:01:02]} (17... Qa5 $1 $11 {keeps the balance.} 18. a3 Bxa3 19. bxa3 Qxa3) 18. h6 {[%emt 0:03:08]} (18. Be5 $16) 18... gxh6 $11 {[%emt 0:03:18]} 19. Rxh6 {[%emt 0:00:19]} Ng6 {[%emt 0:02:03] Against Be5} 20. Rdh1 {[%emt 0:01:19]} Kc8 {[%emt 0:01:42]} 21. Rxh7 {[%emt 0:02:25]} Rg8 {[%emt 0:01:37]} 22. Bg3 {[%emt 0:04:05] [#]} (22. Ne2 $11) 22... Be3 {[%emt 0:01:16]} (22... Qa5 $1 $17 {[%cal Oe6a2] Strongly threatening ...Bxa2+!} 23. a3 Kb7) 23. Qe1 {[%emt 0:01:11]} Bxg5 {[%emt 0:01:17]} 24. e5 {[%emt 0:00:41] Hoping for Ne4.} Nf4 {[%emt 0:05:00]} 25. Rh8 {[%emt 0:01:39]} Rxh8 {[%emt 0:04:24]} 26. Rxh8+ {[%emt 0:00:02]} Kb7 {[%emt 0:02:08] Active counter play!} 27. Ne4 $2 {[%emt 0:02:34]} (27. Be4 $11) 27... Nxd3 $19 {[%emt 0:00:25]} 28. cxd3 {[%emt 0:00:09] [#]} Be7 $2 {[%emt 0:00:04] Really sharp! A strong pair of Bishops.} ({Black should play} 28... Rxd3 $1 $19 29. Bf2 (29. Nxg5 $2 Bf5 $19) 29... Be3 30. Nd6+ Ka7 31. Bxe3 Qxe3 32. Qxe3+ Rxe3 33. Nxf7 Kb6 34. Rb8+ Kc7) 29. Bf2 $11 {[%emt 0:01:17]} c5 {[%emt 0:00:57]} 30. Qg1 {[%cal Rf2c5]} Rxd3 {[%emt 0:08:46] White must now prevent ...Qc6.} 31. Nxc5+ $4 {[%emt 0:01:29][%mdl 8192]} (31. Re8 $11 Rd7 32. Rxe7 (32. Bxc5 Qc6 $17) (32. Nxc5+ $2 Bxc5 33. Rxe6 Qxe6 $19) 32... Rxe7 33. Nd6+ Kb8 34. Qg8+ Ka7 35. b4) 31... Bxc5 $19 {[%emt 0:00:03]} 32. Bxc5 {[%emt 0:00:08]} Qc6 $2 $40 {[%emt 0:00:18][%mdl 128] Black attacks.} (32... Qa5 $19 33. Ba3 Qa4) 33. Bd6 $15 {[%emt 0:00:54][%csl Gd6][%cal Rh8b8]} Bc8 $1 {[%emt 0:00:22] Threatens to win with ...a5.} 34. Qc1 $2 {[%emt 0:00:31][%mdl 8192]} (34. Qh1 $15 Qxh1+ 35. Rxh1) 34... Rxd6 $19 {[%emt 0:03:57]} 35. Rxc8 {[%emt 0:00:02]} Qxc8 {[%emt 0:00:21] Weighted Error Value: White=0.89/Black=0.44} (35... Kxc8 $142 36. exd6 Qxc1+ 37. Kxc1 Kd7) 0-1

[Event "Czech Open-GM 2022"]
[Site "Pardubice"]
[Date "2022.07.25"]
[Round "4.3"]
[White "Gnojek, Petr"]
[Black "Brodowski, Piotr"]
[Result "0-1"]
[ECO "A56"]
[WhiteElo "2295"]
[BlackElo "2450"]
[Annotator "TA"]
[PlyCount "82"]
[EventDate "2022.07.22"]
[EventType "swiss"]
[EventCountry "CZE"]
[SourceTitle "playchess.com"]
[Source "ChessBase"]
[SourceQuality "1"]
[TimeControl "40/5400+30:1800+30"]

{[%evp 20,82,7,0,48,1,20,18,35,-27,20,0,-5,-26,-31,-52,-58,-114,-111,-109,-95,-101,-77,-89,-81,-131,-114,-166,-21,-110,-122,-287,-273,-326,-294,-320,-325,-312,-310,-396,-402,-387,-383,-418,-414,-461,-463,-454,-456,-470,-470,-580,-576,-605,-589,-736,-695,-1058,-1048,-1079,-1070,-960,-779,-779,-533]} 1. d4 {[%emt 0:00:04]} Nf6 {[%emt 0:00:50]} 2. c4 {[%emt 0:00:09]} c5 {[%emt 0:00:10]} 3. d5 {[%emt 0:00:08]} g6 {[%emt 0:00:49]} 4. Nc3 {[%emt 0:00:19]} Bg7 {[%emt 0:00:13]} 5. Nf3 {[%emt 0:00:10]} O-O {[%emt 0:00:31]} 6. e4 {[%emt 0:00:45]} d6 {[%emt 0:00:07]} 7. Nd2 {[%emt 0:00:38]} e6 {[%emt 0:01:25]} 8. Be2 {[%emt 0:00:13]} Re8 {[%emt 0:02:09]} 9. O-O {[%emt 0:00:30]} Na6 {[%emt 0:16:27]} 10. Re1 {[%emt 0:08:55]} Nc7 {[%emt 0:04:48]} 11. a4 {[%emt 0:01:22] 11.Bf1 is more fashionable.} a6 {[%emt 0:00:41] [#] E91: King's Indian: Classical: 6 Be2, unusual replies including 6...c5 and 6...Bg4.} (11... b6 $11) 12. Bd3 $146 {[%emt 0:13:06]} (12. a5 $14) ({Predecessor:} 12. a5 exd5 13. cxd5 Bd7 14. f3 Nh5 15. Nc4 Bb5 16. Be3 Bxc4 17. Bxc4 Rb8 18. g4 Nf6 19. Na4 {0-1 (37) Molina,R (2400)-Harsha,B (2499) Chess.com INT 2022}) 12... Rb8 {[%emt 0:02:54]} 13. a5 {[%emt 0:07:11]} Nd7 {[%emt 0:11:02] The position is equal.} 14. f4 {[%emt 0:02:51]} (14. Nf3 $14) 14... Bd4+ {[%emt 0:03:10]} (14... exd5 {should be considered.} 15. cxd5 b5) 15. Kh1 $11 {[%emt 0:00:05]} exd5 {[%emt 0:02:00]} 16. exd5 {[%emt 0:05:51]} Nf6 {[%emt 0:01:47] White must now prevent ...Ng4.} 17. Rxe8+ {[%emt 0:03:31]} Ncxe8 {[%emt 0:01:21]} 18. Be2 {[%emt 0:01:16] Prevents Ng4.} (18. Qe1 $15) 18... Qe7 $17 {[%emt 0:07:14][%cal Of6g4]} 19. Qf1 {[%emt 0:11:25]} Ng7 {[%emt 0:08:37] ...Bf5 is the strong threat.} 20. Nf3 {[%emt 0:00:53]} Bxc3 {[%emt 0:01:18]} 21. bxc3 {[%emt 0:00:05]} Bg4 {[%emt 0:00:14]} 22. Bd3 {[%emt 0:09:50]} ({Better is} 22. h3 Re8 23. Bd1) 22... Re8 {[%emt 0:04:38]} 23. f5 {[%emt 0:12:30]} (23. Bd2 $17) 23... Ne4 {[%emt 0:05:48]} (23... Nxf5 24. Bg5 Kg7 25. Re1 $15) (23... Bxf5 $19 24. Bxf5 Nxf5) 24. Bxe4 {[%emt 0:01:14]} (24. fxg6 $1 $11 {remains equal.} hxg6 25. Bh6) 24... Qxe4 {[%emt 0:00:08]} 25. f6 $2 {[%emt 0:00:25] Now White is beyond hope.} (25. fxg6 $17 fxg6 26. Bg5 (26. Ng5 Qxc4 27. Qf7+ Kh8 $17)) 25... Bxf3 $19 {[%emt 0:05:19]} 26. gxf3 {[%emt 0:00:06] [#]} Qh4 {[%emt 0:00:09] And now ...Re1 would win.} 27. Bd2 {[%emt 0:06:23] Prevents Re1.} (27. fxg7 $2 Re1 28. Bb2 Rxf1+ 29. Rxf1 Qxc4 $19) 27... Nf5 {[%emt 0:00:56] ( -> ...Ng3+)} ({Weaker is} 27... Qxf6 28. Rb1 $19) 28. Kg1 {[%emt 0:01:17]} Qxf6 {[%emt 0:00:34]} 29. Qf2 {[%emt 0:02:42]} Nh4 {[%emt 0:03:42]} 30. Rf1 {[%emt 0:00:04]} Kg7 {[%emt 0:00:24]} 31. Qg3 {[%emt 0:00:40] Hoping for Bg5.} h6 {[%emt 0:00:26] Prevents Bg5.} 32. Qf4 {[%emt 0:01:40]} Nf5 {[%emt 0:01:26] Active counter play! Black is clearly winning.} 33. Kf2 {[%emt 0:01:36]} Qd8 {[%emt 0:01:28]} ({Not} 33... Qe7 $2 34. Re1 Qd8 35. Re4 $19) 34. Ra1 {[%emt 0:00:12]} Re5 {[%emt 0:01:39]} ({But not} 34... Qe7 $2 35. Re1 Qd8 36. Re4 $19) 35. Kf1 {[%emt 0:02:04]} b6 {[%emt 0:04:41][%cal Bb7b6,Bb6a5][%mdl 32]} 36. h4 {[%emt 0:03:04]} bxa5 {[%emt 0:00:23]} 37. Rb1 {[%emt 0:00:03]} Qd7 {[%emt 0:02:00] Threatens to win with ...Qa4.} 38. Qg4 {[%emt 0:03:24]} Qa4 {[%emt 0:00:45]} 39. Rc1 {[%emt 0:00:44] Prevents Qc2.} Qa2 {[%emt 0:01:45]} 40. Bf4 {[%emt 0:00:51]} Qe2+ {[%emt 0:01:18]} 41. Kg1 {[%emt 0:30:03]} Re3 {[%emt 0:31:14] Weighted Error Value: White=0.50/Black=0.21 (precise)} 0-1

[Event "Czech Open-GM 2022"]
[Site "Pardubice"]
[Date "2022.07.25"]
[Round "4.4"]
[White "Stocek, Jiri"]
[Black "Svanda, Ondrej"]
[Result "1-0"]
[ECO "A46"]
[WhiteElo "2548"]
[BlackElo "2363"]
[Annotator "TA"]
[PlyCount "89"]
[EventDate "2022.07.22"]
[EventType "swiss"]
[EventCountry "CZE"]
[SourceTitle "playchess.com"]
[Source "ChessBase"]
[SourceQuality "1"]
[TimeControl "40/5400+30:1800+30"]

{[%evp 15,89,26,29,-1,0,0,0,0,18,0,0,0,0,0,23,14,78,80,102,104,106,99,152,147,161,111,145,120,117,22,22,27,28,58,48,79,39,0,86,35,26,16,33,0,8,0,0,0,15,0,10,0,0,0,115,0,20,37,37,50,113,103,264,293,295,282,491,456,512,540,605,559,629,654,583,504]} 1. d4 {[%emt 0:06:16]} Nf6 {[%emt 0:00:05]} 2. Nf3 {[%emt 0:00:49]} e6 {[%emt 0:00:07]} 3. Bf4 {[%emt 0:01:41]} d5 {[%emt 0:05:43]} 4. e3 {[%emt 0:00:49]} c5 {[%emt 0:01:12]} 5. Nbd2 {[%emt 0:02:38]} Nc6 {[%emt 0:00:14]} 6. c3 {[%emt 0:00:27]} Bd6 {[%emt 0:14:52]} 7. Bg3 {[%emt 0:06:33]} Bxg3 {[%emt 0:09:10]} 8. hxg3 {[%emt 0:00:26]} Qd6 {[%emt 0:01:57]} 9. dxc5 {[%emt 0:12:18] D02: 1 d4 d5 2 Nf3 sidelines, including 2...Nf6 3 g3 and 2...Nf6 3 Bf4.} Qxc5 {[%emt 0:00:17]} 10. Bd3 {[%emt 0:00:11]} e5 {[%emt 0:03:56] ...e4 is the strong threat.} 11. e4 $1 {[%emt 0:00:19] The position is equal.} Bg4 {[%emt 0:04:15]} 12. exd5 {[%emt 0:15:02]} Qxd5 {[%emt 0:01:46] [#]} 13. Bc4 $146 {[%emt 0:03:19]} ({Predecessor:} 13. Qe2 O-O-O 14. Bc4 Qd6 15. O-O-O Qc7 16. Ne4 Nxe4 17. Qxe4 Bxf3 18. gxf3 h6 19. Qf5+ {1-0 (62) Pultinevicius,P (2434)-Golubovskis,M (1992) Chess.com INT 2019}) 13... Qd7 {[%emt 0:03:45]} 14. Qe2 {[%emt 0:04:33][%cal Of3e5] Inhibits e4.} Qe7 {[%emt 0:10:18] Strongly threatening ...e4.} 15. Ne4 {[%emt 0:03:03]} Nxe4 {[%emt 0:14:18]} (15... O-O-O $11) 16. Qxe4 $16 {[%emt 0:00:24]} Bxf3 {[%emt 0:00:02]} 17. gxf3 {[%emt 0:03:10]} g6 {[%emt 0:03:31]} 18. O-O-O {[%emt 0:01:00]} O-O {[%emt 0:01:05]} (18... h5 $142) 19. Qe3 $1 {[%emt 0:03:35] White wants to mate with Qh6.} Qf6 {[%emt 0:01:37] [#]} 20. Rd7 {[%emt 0:05:44]} (20. Qh6 Qg7 $16) (20. Rd6 $3 $18 {[%mdl 512]} Qg7 21. Rhd1) 20... Rac8 {[%emt 0:02:34]} 21. Qh6 {[%emt 0:03:20][%csl Gh1][%cal Rh6h7]} (21. Rxb7 $6 Na5 22. Qh6 Qh8 23. Bxf7+ Rxf7 24. Qxg6+ hxg6 $14) 21... Qg7 {[%emt 0:00:01]} 22. Bd5 {[%emt 0:05:25] White is much more active.} ({But not} 22. Rxb7 $6 Qxh6+ 23. Rxh6 Na5 24. Rxf7 (24. Bxf7+ Kg7 $17) 24... Nxc4 25. Rfxh7 a5 $11) (22. Qh4 $16) 22... Qxh6+ $11 {[%emt 0:00:06]} 23. Rxh6 {[%emt 0:00:05]} Rcd8 {[%emt 0:00:10]} 24. Bxc6 {[%emt 0:04:25]} bxc6 {[%emt 0:00:00]} 25. Rxa7 {[%emt 0:00:08][%mdl 4096] Endgame KRR-KRR} Rd3 {[%emt 0:00:02]} 26. Rh2 {[%emt 0:04:09]} Rxf3 {[%emt 0:00:03]} (26... Rfd8 $1 $11) 27. Rc7 {[%emt 0:00:39]} (27. a4 $16) 27... Ra8 $14 {[%emt 0:03:02]} 28. a3 {[%emt 0:00:58]} Ra6 {[%emt 0:00:01]} 29. Rb7 {[%emt 0:00:28]} Ra5 {[%emt 0:05:04]} 30. Kc2 {[%emt 0:03:16]} h5 {[%emt 0:04:25]} 31. Rc7 {[%emt 0:01:25]} Rf6 {[%emt 0:01:53]} 32. c4 {[%emt 0:00:52]} c5 {[%emt 0:02:40]} 33. Rd7 {[%emt 0:02:57]} Rf3 {[%emt 0:02:57]} 34. Rd3 {[%emt 0:01:14]} Rf5 {[%emt 0:01:46]} (34... Rxd3 $11 35. Kxd3 f5) 35. Rd5 {[%emt 0:00:59]} (35. b4 $1 $16 Ra7 36. b5 (36. bxc5 e4 $15)) 35... Kg7 {[%emt 0:01:21]} 36. Kd2 {[%emt 0:02:25]} Kf6 {[%emt 0:00:55]} 37. Ke3 {[%emt 0:00:12] Against Rf3+} Kg5 {[%emt 0:01:57]} (37... Rg5 $14) 38. f3 {[%emt 0:01:37]} f6 $2 {[%emt 0:00:26] [#] This costs Black the game.} (38... Kh6 $16 {keeps fighting.}) 39. Rh1 $1 $18 {[%emt 0:01:04]} Kh6 {[%emt 0:00:34] [#]} 40. Ra1 $1 {[%emt 0:00:18] Threatens to win with b4.} h4 $2 {[%emt 0:01:03]} (40... Ra8 41. Rxc5 g5) 41. gxh4 {[%emt 0:12:41] White is clearly winning.} Rf4 {[%emt 0:00:00]} 42. b4 {[%emt 0:01:17]} Ra7 {[%emt 0:00:02]} 43. Rxc5 {[%emt 0:00:22]} Rxh4 {[%emt 0:00:03]} 44. b5 {[%emt 0:01:38]} Rd7 {[%emt 0:01:03]} 45. Rd5 {[%emt 0:02:24] Weighted Error Value: White=0.15 (very precise) /Black=0.38} 1-0

[Event "Czech Open-GM 2022"]
[Site "Pardubice"]
[Date "2022.07.25"]
[Round "4.5"]
[White "Nurkiewicz, Maciej"]
[Black "Donchenko, Alexander"]
[Result "0-1"]
[ECO "C88"]
[WhiteElo "2332"]
[BlackElo "2640"]
[Annotator "TA"]
[PlyCount "158"]
[EventDate "2022.07.22"]
[EventType "swiss"]
[EventCountry "CZE"]
[SourceTitle "playchess.com"]
[Source "ChessBase"]
[SourceQuality "1"]
[TimeControl "40/5400+30:1800+30"]

{[%evp 16,158,20,14,16,0,6,-25,28,29,34,22,25,25,18,0,0,0,0,-7,-6,-5,-10,-11,0,0,0,0,0,0,0,0,0,0,0,-6,-7,-6,0,0,0,-15,0,-5,0,-17,-13,-13,-14,-37,0,0,0,0,0,0,0,0,0,0,0,0,0,0,0,0,0,0,0,0,0,-19,-19,-19,-19,-19,-19,-19,-19,-19,-19,-19,-19,-19,-19,-19,-19,-19,-19,-19,-19,-19,-19,-19,0,-19,0,-19,-19,-19,-19,-19,-19,-19,96,-19,-19,-19,-19,-19,-19,-19,-19,-19,-19,-19,-8,-8,-8,-8,0,0,-8,-80,-19,-531,-473,-29974,-29943,-29944,-12845,-12586,-1353,-2364,-2276,-29972,-29971,-29974,-29975,-29975,-29976,-29976,-29977,-29990,-29984]} 1. e4 {[%emt 0:00:03]} e5 {[%emt 0:00:08]} 2. Nf3 {[%emt 0:00:43]} Nc6 {[%emt 0:00:06]} 3. Bb5 {[%emt 0:00:11]} a6 {[%emt 0:00:06]} 4. Ba4 {[%emt 0:00:04]} Nf6 {[%emt 0:00:06]} 5. O-O {[%emt 0:00:19]} Be7 {[%emt 0:00:06]} 6. Re1 {[%emt 0:01:31]} b5 {[%emt 0:00:06]} 7. Bb3 {[%emt 0:00:05]} O-O {[%emt 0:00:08]} 8. h3 {[%emt 0:00:40]} Bb7 {[%emt 0:00:27]} 9. d3 {[%emt 0:08:05]} d5 $1 {[%emt 0:00:25][%mdl 4] is recently more successful than 9...d6. C88: Closed Ruy Lopez: Anti-Marshall Systems.} 10. Nc3 {[%emt 0:12:08][%cal Rc3d5]} dxe4 {[%emt 0:10:11]} 11. dxe4 {[%emt 0:00:23]} Nd4 {[%emt 0:00:57] [#]} (11... Qxd1 $142 12. Rxd1 Bd6) 12. Nxe5 $146 {[%emt 0:08:46]} ({Predecessor:} 12. Bg5 Nxb3 13. axb3 b4 14. Bxf6 Bxf6 15. Nd5 a5 16. Qd3 Re8 17. Rad1 Qd6 18. Qb5 Bc6 19. Qc4 Rab8 20. Nf4 Bb5 21. Rxd6 Bxc4 22. Rxf6 Bxb3 23. Rf5 f6 24. cxb3 {1-0 (24) Nyudleev,D (2328)-Ioffe,I (2200) Moscow 2016}) 12... Nxb3 {[%emt 0:00:56]} 13. Qxd8 {[%emt 0:00:32]} Rfxd8 {[%emt 0:25:23]} 14. axb3 {[%emt 0:00:58]} b4 {[%emt 0:00:15]} 15. Nd5 {[%emt 0:00:35]} Nxd5 {[%emt 0:00:14]} 16. exd5 {[%emt 0:00:06]} Bxd5 {[%emt 0:00:18]} 17. Nc4 {[%emt 0:02:53]} Bf6 {[%emt 0:03:49]} 18. Ra5 {[%emt 0:07:22]} h6 {[%emt 0:09:09]} 19. Kf1 {[%emt 0:27:42]} Be6 {[%emt 0:08:05]} 20. Rc5 {[%emt 0:02:36]} Rd7 {[%emt 0:09:35]} 21. Bf4 {[%emt 0:00:57]} Bd4 {[%emt 0:01:31]} 22. Rxc7 {[%emt 0:05:41]} Rxc7 {[%emt 0:00:18]} 23. Bxc7 {[%emt 0:00:05]} Bxc4+ {[%emt 0:02:37]} 24. bxc4 {[%emt 0:00:06]} Bxb2 {[%emt 0:00:04][%mdl 4096] Endgame White must now prevent ...a5. KRB-KRB} 25. Ba5 {[%emt 0:01:46]} Rc8 {[%emt 0:04:32]} 26. Re4 $1 {[%emt 0:00:53]} Bc3 {[%emt 0:03:30]} 27. g4 {[%emt 0:00:40]} Rc6 {[%emt 0:05:13]} 28. Kg2 {[%emt 0:08:02]} g6 {[%emt 0:02:33]} 29. Kf3 {[%emt 0:00:36]} Kg7 {[%emt 0:00:27]} 30. Kg2 {[%emt 0:00:28]} f5 {[%emt 0:02:07]} 31. gxf5 {[%emt 0:00:06]} gxf5 {[%emt 0:00:05]} 32. Rh4 {[%emt 0:04:36][%cal Oc4c5]} Kg6 {[%emt 0:08:47] ...Bf6 is the strong threat.} (32... Bf6 $5 {[%cal Rf6h4]} 33. Rf4 Kg6 34. Bxb4 Be5 $15) 33. c5 $1 {[%emt 0:00:24]} Rxc5 {[%emt 0:00:31]} 34. Bxb4 {[%emt 0:00:12]} Kg5 {[%emt 0:00:17]} 35. Bxc5 {[%emt 0:02:25]} Kxh4 {[%emt 0:00:02] KB-KB} 36. Be7+ {[%emt 0:00:32]} Kh5 {[%emt 0:00:02]} 37. Kf3 {[%emt 0:00:18]} a5 {[%emt 0:01:17]} 38. Ke2 {[%emt 0:01:34]} Kg6 {[%emt 0:03:57]} 39. Kd3 {[%emt 0:00:19]} Be1 {[%emt 0:01:05]} 40. f3 {[%emt 0:02:02]} Kf7 {[%emt 0:00:03]} 41. Ba3 {[%emt 0:11:53]} Ke6 {[%emt 0:01:26]} 42. Bf8 {[%emt 0:02:08]} h5 {[%emt 0:00:15]} 43. Bg7 {[%emt 0:00:05]} Kd5 {[%emt 0:00:39]} 44. c4+ {[%emt 0:03:02]} Kc6 {[%emt 0:00:57]} 45. Bf8 {[%emt 0:01:14]} Bf2 {[%emt 0:01:11]} 46. Kc2 {[%emt 0:04:25]} a4 {[%emt 0:01:06]} 47. Kc3 {[%emt 0:02:27]} Bc5 {[%emt 0:00:37]} 48. Bg7 {[%emt 0:00:13]} Kd7 {[%emt 0:01:30]} 49. Be5 {[%emt 0:03:19]} Ke6 {[%emt 0:00:25]} 50. Bg7 {[%emt 0:04:30]} Bd6 {[%emt 0:01:48]} 51. Kc2 {[%emt 0:01:01]} Be5 {[%emt 0:01:53]} 52. Bf8 {[%emt 0:00:02]} Kf6 {[%emt 0:00:35]} 53. Bh6 {[%emt 0:01:09]} Bd6 {[%emt 0:02:19]} 54. Be3 {[%emt 0:00:56]} Be5 {[%emt 0:03:11]} 55. Bh6 {[%emt 0:00:51]} Ke6 {[%emt 0:00:09]} 56. Bf8 {[%emt 0:00:28]} Bd4 {[%emt 0:01:42]} 57. Bh6 {[%emt 0:00:53]} Bf6 {[%emt 0:01:15]} 58. Bd2 {[%emt 0:00:30]} Kd6 {[%emt 0:01:06] aiming for ...Kc5.} 59. Bb4+ {[%emt 0:00:12]} Kc6 {[%emt 0:00:04] [#]} (59... Kd7 $11 {keeps the balance.}) 60. Bf8 {[%emt 0:00:14]} ({Only move:} 60. Kb1 $1 $16) 60... Be5 {[%emt 0:00:08]} 61. Ba3 {[%emt 0:00:53]} Bd6 {[%emt 0:01:31]} 62. Bc1 {[%emt 0:00:08]} Bb4 {[%emt 0:00:25]} 63. Be3 {[%emt 0:00:30]} Kd6 {[%emt 0:00:08]} 64. Bd4 {[%emt 0:00:15]} Bc5 {[%emt 0:00:15]} 65. Bg7 {[%emt 0:00:40]} Bf2 {[%emt 0:00:56]} 66. Kc3 {[%emt 0:00:50]} Be1+ {[%emt 0:00:16]} 67. Kd4 {[%emt 0:00:58]} Bg3 {[%emt 0:01:12] And now ...Ke6 would win.} 68. Bf8+ {[%emt 0:00:38]} Ke6 {[%emt 0:00:03]} 69. Kd3 {[%emt 0:02:05]} (69. Kc3 $11 {remains equal.}) 69... Ke5 {[%emt 0:06:02]} (69... Bd6 $17 70. Bh6 f4) 70. Bh6 $2 {[%emt 0:00:02][%mdl 8192] This costs White the game.} (70. Bc5 $11 {and White stays safe.}) 70... a3 $19 {[%emt 0:04:10][%cal Ba4a3,Ba3a2][%mdl 32]} 71. Bg7+ {[%emt 0:01:28] [#]} (71. Kc2 $19 a2 72. Kb3 a1=N+ 73. Kc3 Be1+ 74. Kd3) 71... Kf4 {[%emt 0:00:45]} 72. Ke2 {[%emt 0:00:27]} Bh4 {[%emt 0:01:23]} 73. c5 {[%emt 0:00:25]} Bd8 {[%emt 0:00:31] ( -> ...a2)} 74. Kf2 {[%emt 0:00:42]} a2 {[%emt 0:00:41] Threatens to win with ...h4.} 75. c6 {[%emt 0:00:22]} Bb6+ {[%emt 0:01:09] Black mates.} 76. Kg2 {[%emt 0:00:14]} h4 {[%emt 0:03:17]} 77. Bf6 {[%emt 0:00:45]} Ke3 {[%emt 0:00:05]} 78. Be5 {[%emt 0:00:06]} Kd3 {[%emt 0:00:24]} 79. f4 {[%emt 0:00:57]} Ke4 {[%emt 0:00:10] Weighted Error Value: White=0.05 (flawless) /Black=0.09 (flawless)} ({And not} 79... Bd4 80. Bxd4 Kxd4 81. c7 $11) 0-1